[Event "Titled Tuesday Blitz March 28 Early 2023"]
[White "Bodnaruk, Anastasia"]
[Black "Boyer, Mahel"]
[WhiteFideId "4181751"]
[BlackFideId "45102422"]
[WhiteElo "2310"]
[BlackElo "2439"]
[Result "0-1"]
[Round "07"]
[TimeControl "180+2"]
[Date "2023.03.28"]
[WhiteClock "0:00:01"]
[BlackClock "0:00:06"]

1. e4 {[%clk 0:03:00]}  e6 {[%clk 0:02:56]} 2. d4 {[%clk 0:03:00]}  d5 {[%clk 0:02:57]} 3. e5 {[%clk 0:03:01]}  c5 {[%clk 0:02:57]} 4. c3 {[%clk 0:03:01]}  Nc6 {[%clk 0:02:57]} 5. Nf3 {[%clk 0:03:02]}  Qa5 {[%clk 0:02:57]} 6. dxc5 {[%clk 0:02:53]}  Qc7 {[%clk 0:02:57]} 7. b4 {[%clk 0:02:48]}  a5 {[%clk 0:02:54]} 8. Bb5 {[%clk 0:02:43]}  Bd7 {[%clk 0:02:54]} 9. Bxc6 {[%clk 0:02:41]}  bxc6 {[%clk 0:02:54]} 10. O-O {[%clk 0:02:40]}  Ne7 {[%clk 0:02:53]} 11. Re1 {[%clk 0:02:37]}  Ng6 {[%clk 0:02:52]} 12. Nbd2 {[%clk 0:02:35]}  a4 {[%clk 0:02:43]} 13. Nf1 {[%clk 0:02:32]}  Be7 {[%clk 0:02:38]} 14. Be3 {[%clk 0:02:14]}  Nxe5 {[%clk 0:02:16]} 15. Bf4 {[%clk 0:02:07]}  Nxf3+ {[%clk 0:02:15]} 16. Qxf3 {[%clk 0:02:07]}  Qb7 {[%clk 0:02:11]} 17. Ng3 {[%clk 0:02:04]}  g6 {[%clk 0:01:59]} 18. Bh6 {[%clk 0:01:52]}  f6 {[%clk 0:01:54]} 19. h4 {[%clk 0:01:38]}  Kf7 {[%clk 0:01:27]} 20. a3 {[%clk 0:01:28]}  Rag8 {[%clk 0:01:26]} 21. c4 {[%clk 0:01:25]}  e5 {[%clk 0:01:20]} 22. Rxe5 {[%clk 0:01:20]}  Bg4 {[%clk 0:00:54]} 23. Qf4 {[%clk 0:00:52]}  Re8 {[%clk 0:00:34]} 24. Rae1 {[%clk 0:00:52]}  Qd7 {[%clk 0:00:26]} 25. Rxe7+ {[%clk 0:00:31]}  Rxe7 {[%clk 0:00:26]} 26. Rxe7+ {[%clk 0:00:32]}  Qxe7 {[%clk 0:00:19]} 27. Qxg4 {[%clk 0:00:32]}  Qe6 {[%clk 0:00:18]} 28. Qf4 {[%clk 0:00:20]}  Re8 {[%clk 0:00:15]} 29. cxd5 {[%clk 0:00:19]}  Qxd5 {[%clk 0:00:14]} 30. Bg5 {[%clk 0:00:17]}  Qe5 {[%clk 0:00:10]} 31. Qxe5 {[%clk 0:00:09]}  Rxe5 {[%clk 0:00:11]} 32. Bf4 {[%clk 0:00:09]}  Rd5 {[%clk 0:00:12]} 33. Ne4 {[%clk 0:00:08]}  Rd3 {[%clk 0:00:02]} 34. Nd6+ {[%clk 0:00:06]}  Ke6 {[%clk 0:00:02]} 35. b5 {[%clk 0:00:05]}  cxb5 {[%clk 0:00:03]} 36. Nxb5 {[%clk 0:00:05]}  Kd5 {[%clk 0:00:03]} 37. Be3 {[%clk 0:00:04]}  Kc6 {[%clk 0:00:04]} 38. Nd4+ {[%clk 0:00:03]}  Kxc5 {[%clk 0:00:04]} 39. Nc2+ {[%clk 0:00:03]}  Kc4 {[%clk 0:00:04]} 40. Nb4 {[%clk 0:00:03]}  Rxa3 {[%clk 0:00:04]} 41. Nc6 {[%clk 0:00:04]}  Ra1+ {[%clk 0:00:04]} 42. Kh2 {[%clk 0:00:03]}  Rd1 {[%clk 0:00:05]} 43. Ne7 {[%clk 0:00:02]}  a3 {[%clk 0:00:05]} 44. h5 {[%clk 0:00:01]}  a2 {[%clk 0:00:05]} 45. hxg6 {[%clk 0:00:01]}  hxg6 {[%clk 0:00:06]} 0-1


[Site "https://www.chess.com"]

[Event "Titled Tuesday Blitz March 28 Early 2023"]
[White "Galchenko, Matvey"]
[Black "Bilan, Danila"]
[WhiteFideId "24175480"]
[BlackFideId "24161918"]
[WhiteElo "2404"]
[BlackElo "2182"]
[Result "1-0"]
[Round "07"]
[TimeControl "180+2"]
[Date "2023.03.28"]
[WhiteClock "0:01:00"]
[BlackClock "0:00:08"]

1. e4 {[%clk 0:03:00]}  c6 {[%clk 0:03:00]} 2. d4 {[%clk 0:02:57]}  d5 {[%clk 0:03:00]} 3. exd5 {[%clk 0:02:58]}  cxd5 {[%clk 0:03:01]} 4. Bd3 {[%clk 0:02:57]}  Nc6 {[%clk 0:03:01]} 5. c3 {[%clk 0:02:58]}  Qc7 {[%clk 0:03:01]} 6. h3 {[%clk 0:02:56]}  g6 {[%clk 0:03:00]} 7. Nf3 {[%clk 0:02:54]}  Bf5 {[%clk 0:03:00]} 8. Be2 {[%clk 0:02:52]}  Nf6 {[%clk 0:02:53]} 9. O-O {[%clk 0:02:49]}  e6 {[%clk 0:02:44]} 10. Re1 {[%clk 0:02:45]}  Bd6 {[%clk 0:02:41]} 11. Na3 {[%clk 0:02:45]}  a6 {[%clk 0:02:38]} 12. Nc2 {[%clk 0:02:43]}  Ne4 {[%clk 0:02:27]} 13. Ne3 {[%clk 0:02:09]}  h5 {[%clk 0:02:15]} 14. Bd3 {[%clk 0:02:03]}  f6 {[%clk 0:01:56]} 15. c4 {[%clk 0:01:26]}  O-O-O {[%clk 0:00:30]} 16. cxd5 {[%clk 0:01:22]}  exd5 {[%clk 0:00:30]} 17. Nxd5 {[%clk 0:01:16]}  Bh2+ {[%clk 0:00:23]} 18. Nxh2 {[%clk 0:01:16]}  Rxd5 {[%clk 0:00:23]} 19. Bxe4 {[%clk 0:01:12]}  Rxd4 {[%clk 0:00:23]} 20. Bxf5+ {[%clk 0:01:12]}  gxf5 {[%clk 0:00:23]} 21. Qf3 {[%clk 0:01:11]}  f4 {[%clk 0:00:21]} 22. Qc3 {[%clk 0:01:08]}  Rhd8 {[%clk 0:00:17]} 23. Nf3 {[%clk 0:01:09]}  Rd3 {[%clk 0:00:16]} 24. Qxf6 {[%clk 0:01:05]}  Qa5 {[%clk 0:00:16]} 25. Bxf4 {[%clk 0:01:03]}  Qd5 {[%clk 0:00:10]} 26. Qe6+ {[%clk 0:01:02]}  Qxe6 {[%clk 0:00:10]} 27. Rxe6 {[%clk 0:01:03]}  Rg8 {[%clk 0:00:10]} 28. Kf1 {[%clk 0:01:01]}  Rf8 {[%clk 0:00:08]} 29. Be3 {[%clk 0:01:00]} 1-0


[Site "https://www.chess.com"]

[Event "Titled Tuesday Blitz March 28 Early 2023"]
[White "Smirnov, Pavel"]
[Black "Nurmanova, Alua"]
[WhiteFideId "4123425"]
[BlackFideId "13729390"]
[WhiteElo "2519"]
[BlackElo "2253"]
[Result "1-0"]
[Round "07"]
[TimeControl "180+2"]
[Date "2023.03.28"]
[WhiteClock "0:02:53"]
[BlackClock "0:01:43"]

1. d4 {[%clk 0:03:00]}  Nf6 {[%clk 0:03:00]} 2. c4 {[%clk 0:03:00]}  g6 {[%clk 0:03:00]} 3. g3 {[%clk 0:03:00]}  Bg7 {[%clk 0:03:00]} 4. Nf3 {[%clk 0:03:01]}  O-O {[%clk 0:03:00]} 5. Bg2 {[%clk 0:03:02]}  d6 {[%clk 0:02:58]} 6. O-O {[%clk 0:03:03]}  Nbd7 {[%clk 0:02:58]} 7. Nc3 {[%clk 0:03:04]}  e5 {[%clk 0:02:59]} 8. b3 {[%clk 0:03:04]}  Re8 {[%clk 0:02:58]} 9. e4 {[%clk 0:03:04]}  exd4 {[%clk 0:02:57]} 10. Nxd4 {[%clk 0:03:05]}  Nc5 {[%clk 0:02:58]} 11. f3 {[%clk 0:03:05]}  c6 {[%clk 0:02:50]} 12. Be3 {[%clk 0:03:05]}  Qc7 {[%clk 0:02:49]} 13. Qd2 {[%clk 0:03:05]}  h5 {[%clk 0:02:46]} 14. Rae1 {[%clk 0:03:04]}  h4 {[%clk 0:02:45]} 15. g4 {[%clk 0:03:03]}  Nh7 {[%clk 0:02:36]} 16. Rd1 {[%clk 0:03:04]}  a5 {[%clk 0:02:34]} 17. Nde2 {[%clk 0:03:03]}  Bf8 {[%clk 0:02:29]} 18. h3 {[%clk 0:03:02]}  Bd7 {[%clk 0:01:55]} 19. Bxc5 {[%clk 0:03:00]}  dxc5 {[%clk 0:01:54]} 20. Qxd7 {[%clk 0:03:01]}  Qe5 {[%clk 0:01:53]} 21. f4 {[%clk 0:03:00]}  Qg7 {[%clk 0:01:51]} 22. e5 {[%clk 0:02:59]}  g5 {[%clk 0:01:46]} 23. Ne4 {[%clk 0:02:55]}  gxf4 {[%clk 0:01:46]} 24. Nxf4 {[%clk 0:02:54]}  Qxe5 {[%clk 0:01:43]} 25. Nh5 {[%clk 0:02:54]}  Re7 {[%clk 0:01:43]} 26. Qf5 {[%clk 0:02:53]} 1-0


[Site "https://www.chess.com"]

[Event "Titled Tuesday Blitz March 28 Early 2023"]
[White "Jeet, Jain"]
[Black "Nagy, Gabor"]
[WhiteFideId "5073022"]
[BlackFideId "737119"]
[WhiteElo "2067"]
[BlackElo "2510"]
[Result "0-1"]
[Round "07"]
[TimeControl "180+2"]
[Date "2023.03.28"]
[WhiteClock "0:00:03"]
[BlackClock "0:02:17"]

1. Nf3 {[%clk 0:03:00]}  c5 {[%clk 0:02:54]} 2. g3 {[%clk 0:03:00]}  Nc6 {[%clk 0:02:54]} 3. Bg2 {[%clk 0:03:01]}  g6 {[%clk 0:02:54]} 4. O-O {[%clk 0:02:59]}  Bg7 {[%clk 0:02:54]} 5. c4 {[%clk 0:02:59]}  d6 {[%clk 0:02:55]} 6. Nc3 {[%clk 0:03:00]}  Bf5 {[%clk 0:02:55]} 7. Nh4 {[%clk 0:02:57]}  Bd7 {[%clk 0:02:54]} 8. e3 {[%clk 0:02:56]}  Qc8 {[%clk 0:02:52]} 9. Re1 {[%clk 0:02:55]}  Bh3 {[%clk 0:02:50]} 10. Bh1 {[%clk 0:02:55]}  h5 {[%clk 0:02:49]} 11. b3 {[%clk 0:02:53]}  Bg4 {[%clk 0:02:48]} 12. Qc2 {[%clk 0:02:42]}  g5 {[%clk 0:02:43]} 13. Nf3 {[%clk 0:02:42]}  h4 {[%clk 0:02:43]} 14. Nxg5 {[%clk 0:02:38]}  hxg3 {[%clk 0:02:44]} 15. fxg3 {[%clk 0:02:38]}  Bf5 {[%clk 0:02:41]} 16. d3 {[%clk 0:02:30]}  Nb4 {[%clk 0:02:39]} 17. Qd2 {[%clk 0:02:26]}  Nxd3 {[%clk 0:02:35]} 18. Rf1 {[%clk 0:02:27]}  Ne5 {[%clk 0:02:32]} 19. Qd5 {[%clk 0:02:00]}  Rb8 {[%clk 0:02:29]} 20. Bb2 {[%clk 0:01:55]}  Nf6 {[%clk 0:02:27]} 21. Qd2 {[%clk 0:01:53]}  Bg6 {[%clk 0:02:26]} 22. Nd5 {[%clk 0:01:50]}  Nxd5 {[%clk 0:02:25]} 23. Bxd5 {[%clk 0:01:50]}  Qg4 {[%clk 0:02:23]} 24. Bxe5 {[%clk 0:01:44]}  Bxe5 {[%clk 0:02:21]} 25. Bxf7+ {[%clk 0:00:11]}  Kd8 {[%clk 0:02:18]} 26. Ne6+ {[%clk 0:00:03]}  Kc8 {[%clk 0:02:17]} 0-1


[Site "https://www.chess.com"]

[Event "Titled Tuesday Blitz March 28 Early 2023"]
[White "Defend1r"]
[Black "Xu, Yi"]
[BlackFideId "8605564"]
[WhiteElo "2551"]
[BlackElo "2471"]
[Result "0-1"]
[Round "07"]
[TimeControl "180+2"]
[Date "2023.03.28"]
[WhiteClock "0:01:24"]
[BlackClock "0:01:23"]

1. e4 {[%clk 0:03:00]}  c5 {[%clk 0:02:59]} 2. Nf3 {[%clk 0:03:01]}  d6 {[%clk 0:02:59]} 3. c3 {[%clk 0:03:01]}  Nf6 {[%clk 0:02:58]} 4. h3 {[%clk 0:03:01]}  Nc6 {[%clk 0:02:57]} 5. Bd3 {[%clk 0:03:02]}  g6 {[%clk 0:02:51]} 6. Bc2 {[%clk 0:03:02]}  Bg7 {[%clk 0:02:50]} 7. d4 {[%clk 0:03:02]}  cxd4 {[%clk 0:02:43]} 8. cxd4 {[%clk 0:03:03]}  O-O {[%clk 0:02:42]} 9. O-O {[%clk 0:03:03]}  Nb4 {[%clk 0:02:36]} 10. Bb3 {[%clk 0:03:01]}  d5 {[%clk 0:02:33]} 11. e5 {[%clk 0:02:59]}  Ne4 {[%clk 0:02:34]} 12. Bf4 {[%clk 0:02:46]}  Bf5 {[%clk 0:02:29]} 13. Ne1 {[%clk 0:02:29]}  f6 {[%clk 0:02:21]} 14. f3 {[%clk 0:02:29]}  Ng5 {[%clk 0:02:17]} 15. Nc3 {[%clk 0:02:10]}  Nf7 {[%clk 0:02:06]} 16. a3 {[%clk 0:01:58]}  fxe5 {[%clk 0:01:55]} 17. dxe5 {[%clk 0:01:56]}  Nc6 {[%clk 0:01:56]} 18. Nxd5 {[%clk 0:01:56]}  e6 {[%clk 0:01:48]} 19. Nf6+ {[%clk 0:01:44]}  Bxf6 {[%clk 0:01:47]} 20. exf6 {[%clk 0:01:43]}  Qb6+ {[%clk 0:01:44]} 21. Kh2 {[%clk 0:01:38]}  Rad8 {[%clk 0:01:43]} 22. Qc1 {[%clk 0:01:33]}  Qxb3 {[%clk 0:01:42]} 23. Bh6 {[%clk 0:01:29]}  Nxh6 {[%clk 0:01:33]} 24. Qxh6 {[%clk 0:01:28]}  Rxf6 {[%clk 0:01:33]} 25. f4 {[%clk 0:01:27]}  Nd4 {[%clk 0:01:24]} 26. Rd1 {[%clk 0:01:24]}  Qxd1 {[%clk 0:01:23]} 0-1


[Site "https://www.chess.com"]

[Event "Titled Tuesday Blitz March 28 Early 2023"]
[White "Alinasab, Mobina"]
[Black "Samunenkov, Ihor"]
[WhiteFideId "12528897"]
[BlackFideId "14187086"]
[WhiteElo "2141"]
[BlackElo "2457"]
[Result "0-1"]
[Round "07"]
[TimeControl "180+2"]
[Date "2023.03.28"]
[WhiteClock "0:00:23"]
[BlackClock "0:00:55"]

1. Nf3 {[%clk 0:03:00]}  d5 {[%clk 0:02:57]} 2. g3 {[%clk 0:03:01]}  c5 {[%clk 0:02:57]} 3. Bg2 {[%clk 0:03:01]}  Nc6 {[%clk 0:02:58]} 4. d4 {[%clk 0:02:59]}  Nf6 {[%clk 0:02:58]} 5. O-O {[%clk 0:02:58]}  e6 {[%clk 0:02:59]} 6. b3 {[%clk 0:02:58]}  Be7 {[%clk 0:02:49]} 7. Bb2 {[%clk 0:02:56]}  O-O {[%clk 0:02:49]} 8. dxc5 {[%clk 0:02:50]}  Bxc5 {[%clk 0:02:46]} 9. Ne5 {[%clk 0:02:51]}  Nxe5 {[%clk 0:02:23]} 10. Bxe5 {[%clk 0:02:52]}  Qe7 {[%clk 0:02:22]} 11. Nd2 {[%clk 0:02:36]}  Rd8 {[%clk 0:02:21]} 12. Qc1 {[%clk 0:02:25]}  b6 {[%clk 0:01:42]} 13. c4 {[%clk 0:02:20]}  Bb7 {[%clk 0:01:41]} 14. Rd1 {[%clk 0:02:07]}  Ng4 {[%clk 0:01:33]} 15. Nf3 {[%clk 0:01:23]}  Nxf2 {[%clk 0:01:29]} 16. Rd4 {[%clk 0:00:49]}  Bxd4 {[%clk 0:01:25]} 17. Bxd4 {[%clk 0:00:46]}  Ne4 {[%clk 0:01:24]} 18. cxd5 {[%clk 0:00:40]}  Bxd5 {[%clk 0:01:23]} 19. Qf4 {[%clk 0:00:39]}  f6 {[%clk 0:01:22]} 20. Qe3 {[%clk 0:00:37]}  Nd6 {[%clk 0:01:17]} 21. Bb2 {[%clk 0:00:36]}  Nf5 {[%clk 0:01:14]} 22. Qf4 {[%clk 0:00:35]}  Qc5+ {[%clk 0:01:13]} 23. Kh1 {[%clk 0:00:35]}  Ne3 {[%clk 0:01:08]} 24. Bh3 {[%clk 0:00:30]}  e5 {[%clk 0:01:01]} 25. Qh4 {[%clk 0:00:22]}  Bxf3+ {[%clk 0:00:57]} 26. exf3 {[%clk 0:00:23]}  Qc2 {[%clk 0:00:55]} 0-1


[Site "https://www.chess.com"]

[Event "Titled Tuesday Blitz March 28 Early 2023"]
[White "Molina, Roberto Junio Brito"]
[Black "Shivakumar, Shawnak"]
[WhiteFideId "2109450"]
[BlackFideId "30940192"]
[WhiteElo "2376"]
[BlackElo "2089"]
[Result "0-1"]
[Round "07"]
[TimeControl "180+2"]
[Date "2023.03.28"]
[WhiteClock "0:00:18"]
[BlackClock "0:01:01"]

1. d4 {[%clk 0:02:59]}  Nf6 {[%clk 0:02:58]} 2. c4 {[%clk 0:02:58]}  e6 {[%clk 0:02:58]} 3. Nf3 {[%clk 0:02:58]}  c5 {[%clk 0:02:52]} 4. d5 {[%clk 0:02:57]}  b5 {[%clk 0:02:49]} 5. Bg5 {[%clk 0:02:55]}  exd5 {[%clk 0:02:47]} 6. cxd5 {[%clk 0:02:54]}  h6 {[%clk 0:02:45]} 7. Bxf6 {[%clk 0:02:41]}  Qxf6 {[%clk 0:02:43]} 8. Qd2 {[%clk 0:02:33]}  d6 {[%clk 0:02:37]} 9. e4 {[%clk 0:02:32]}  a6 {[%clk 0:02:34]} 10. a4 {[%clk 0:02:31]}  b4 {[%clk 0:02:34]} 11. Be2 {[%clk 0:02:23]}  Nd7 {[%clk 0:02:28]} 12. O-O {[%clk 0:02:23]}  g5 {[%clk 0:02:26]} 13. Qe3 {[%clk 0:02:17]}  g4 {[%clk 0:02:25]} 14. Nfd2 {[%clk 0:02:02]}  Ne5 {[%clk 0:02:22]} 15. Nc4 {[%clk 0:01:57]}  Nxc4 {[%clk 0:02:21]} 16. Bxc4 {[%clk 0:01:58]}  Bg7 {[%clk 0:02:21]} 17. Nd2 {[%clk 0:01:57]}  Qxb2 {[%clk 0:02:19]} 18. Rab1 {[%clk 0:01:50]}  Qd4 {[%clk 0:02:17]} 19. Qe2 {[%clk 0:01:50]}  h5 {[%clk 0:02:14]} 20. Kh1 {[%clk 0:01:50]}  h4 {[%clk 0:02:11]} 21. f4 {[%clk 0:01:47]}  h3 {[%clk 0:02:09]} 22. g3 {[%clk 0:01:45]}  O-O {[%clk 0:02:10]} 23. Nb3 {[%clk 0:01:41]}  Qf6 {[%clk 0:02:08]} 24. Rbe1 {[%clk 0:01:33]}  Re8 {[%clk 0:02:02]} 25. Na5 {[%clk 0:01:32]}  Bd7 {[%clk 0:02:00]} 26. Nc6 {[%clk 0:01:25]}  Rac8 {[%clk 0:01:53]} 27. Bxa6 {[%clk 0:01:24]}  Rxc6 {[%clk 0:01:52]} 28. dxc6 {[%clk 0:01:25]}  Bxc6 {[%clk 0:01:53]} 29. Bd3 {[%clk 0:01:16]}  c4 {[%clk 0:01:52]} 30. Bb1 {[%clk 0:01:16]}  Qd4 {[%clk 0:01:50]} 31. Qxg4 {[%clk 0:01:06]}  c3 {[%clk 0:01:35]} 32. f5 {[%clk 0:00:52]}  Kf8 {[%clk 0:01:34]} 33. f6 {[%clk 0:00:47]}  Bxf6 {[%clk 0:01:32]} 34. Qf4 {[%clk 0:00:48]}  Re6 {[%clk 0:01:29]} 35. Rd1 {[%clk 0:00:42]}  Rxe4 {[%clk 0:01:25]} 36. Qf3 {[%clk 0:00:24]}  Re1 {[%clk 0:01:06]} 37. Qxc6 {[%clk 0:00:18]}  Qxd1 {[%clk 0:01:04]} 38. Qc8+ {[%clk 0:00:17]}  Kg7 {[%clk 0:01:01]} 39. Qg4+ {[%clk 0:00:18]}  Qxg4 {[%clk 0:01:01]} 0-1


[Site "https://www.chess.com"]

[Event "Titled Tuesday Blitz March 28 Early 2023"]
[White "Perez Rodriguez, Jennifer"]
[Black "Harshavardhan G B"]
[WhiteFideId "3507831"]
[BlackFideId "25059009"]
[WhiteElo "2170"]
[BlackElo "2323"]
[Result "0-1"]
[Round "07"]
[TimeControl "180+2"]
[Date "2023.03.28"]
[WhiteClock "0:00:44"]
[BlackClock "0:00:37"]

1. e4 {[%clk 0:03:00]}  e5 {[%clk 0:02:55]} 2. Nf3 {[%clk 0:03:00]}  Nc6 {[%clk 0:02:52]} 3. d4 {[%clk 0:02:59]}  exd4 {[%clk 0:02:51]} 4. Nxd4 {[%clk 0:02:59]}  Bc5 {[%clk 0:02:51]} 5. Be3 {[%clk 0:02:57]}  Qf6 {[%clk 0:02:46]} 6. c3 {[%clk 0:02:56]}  Nge7 {[%clk 0:02:46]} 7. Bc4 {[%clk 0:02:50]}  d6 {[%clk 0:02:44]} 8. O-O {[%clk 0:02:48]}  Bb6 {[%clk 0:02:41]} 9. Nc2 {[%clk 0:02:43]}  O-O {[%clk 0:02:39]} 10. Bxb6 {[%clk 0:02:40]}  axb6 {[%clk 0:02:38]} 11. Nd2 {[%clk 0:02:39]}  Be6 {[%clk 0:02:37]} 12. Ne3 {[%clk 0:02:37]}  Rfd8 {[%clk 0:02:25]} 13. Nd5 {[%clk 0:02:32]}  Bxd5 {[%clk 0:02:24]} 14. exd5 {[%clk 0:02:32]}  Ne5 {[%clk 0:02:24]} 15. Bb3 {[%clk 0:02:29]}  N7g6 {[%clk 0:02:01]} 16. Ne4 {[%clk 0:02:23]}  Qh4 {[%clk 0:01:57]} 17. f3 {[%clk 0:02:16]}  f5 {[%clk 0:01:54]} 18. Ng3 {[%clk 0:02:10]}  Rf8 {[%clk 0:01:48]} 19. Qd2 {[%clk 0:02:03]}  Rae8 {[%clk 0:01:46]} 20. Rae1 {[%clk 0:01:56]}  Nf4 {[%clk 0:01:40]} 21. Bc2 {[%clk 0:01:45]}  Qg5 {[%clk 0:01:28]} 22. Kh1 {[%clk 0:00:58]}  g6 {[%clk 0:01:19]} 23. Rf2 {[%clk 0:00:52]}  Nc4 {[%clk 0:01:13]} 24. Qc1 {[%clk 0:00:47]}  Rxe1+ {[%clk 0:01:00]} 25. Qxe1 {[%clk 0:00:47]}  Nxb2 {[%clk 0:01:01]} 26. Bxf5 {[%clk 0:00:46]}  Nbd3 {[%clk 0:00:36]} 27. Bxd3 {[%clk 0:00:45]}  Nxd3 {[%clk 0:00:37]} 28. Qe6+ {[%clk 0:00:45]}  Kg7 {[%clk 0:00:38]} 29. Re2 {[%clk 0:00:44]}  Qc1+ {[%clk 0:00:37]} 0-1


[Site "https://www.chess.com"]

[Event "Titled Tuesday Blitz March 28 Early 2023"]
[White "Delorme, Alban"]
[Black "Bolourchifard, Farzad"]
[WhiteFideId "623636"]
[BlackFideId "12510084"]
[WhiteElo "2196"]
[BlackElo "2317"]
[Result "0-1"]
[Round "07"]
[TimeControl "180+2"]
[Date "2023.03.28"]
[WhiteClock "0:00:02"]
[BlackClock "0:00:14"]

1. e4 {[%clk 0:03:00]}  e5 {[%clk 0:02:59]} 2. Nf3 {[%clk 0:03:00]}  Nc6 {[%clk 0:03:00]} 3. Bc4 {[%clk 0:03:01]}  Bc5 {[%clk 0:03:00]} 4. c3 {[%clk 0:02:57]}  Nf6 {[%clk 0:03:00]} 5. d4 {[%clk 0:02:57]}  exd4 {[%clk 0:03:01]} 6. b4 {[%clk 0:02:57]}  Bb6 {[%clk 0:03:01]} 7. e5 {[%clk 0:02:57]}  d5 {[%clk 0:03:01]} 8. exf6 {[%clk 0:02:57]}  dxc4 {[%clk 0:03:02]} 9. Qe2+ {[%clk 0:02:57]}  Be6 {[%clk 0:03:02]} 10. b5 {[%clk 0:02:58]}  d3 {[%clk 0:02:54]} 11. Qe4 {[%clk 0:02:58]}  Na5 {[%clk 0:02:54]} 12. fxg7 {[%clk 0:02:58]}  Rg8 {[%clk 0:02:54]} 13. Bg5 {[%clk 0:02:58]}  Qd5 {[%clk 0:02:52]} 14. Qxh7 {[%clk 0:02:58]}  Kd7 {[%clk 0:02:52]} 15. O-O {[%clk 0:02:59]}  Rae8 {[%clk 0:02:34]} 16. Nbd2 {[%clk 0:02:54]}  Kc8 {[%clk 0:02:32]} 17. Rae1 {[%clk 0:02:41]}  Qxb5 {[%clk 0:01:01]} 18. Re5 {[%clk 0:01:48]}  Qd7 {[%clk 0:00:59]} 19. Ne4 {[%clk 0:01:46]}  Nc6 {[%clk 0:00:44]} 20. Nf6 {[%clk 0:01:36]}  Nxe5 {[%clk 0:00:40]} 21. Nxe5 {[%clk 0:01:29]}  Qb5 {[%clk 0:00:33]} 22. Nxe8 {[%clk 0:01:01]}  Qxe8 {[%clk 0:00:31]} 23. Re1 {[%clk 0:00:52]}  Ba5 {[%clk 0:00:25]} 24. Ng4 {[%clk 0:00:31]}  Bxc3 {[%clk 0:00:25]} 25. Nf6 {[%clk 0:00:21]}  Bxf6 {[%clk 0:00:24]} 26. Bxf6 {[%clk 0:00:22]}  b6 {[%clk 0:00:19]} 27. h4 {[%clk 0:00:22]}  Kb8 {[%clk 0:00:19]} 28. h5 {[%clk 0:00:22]}  Qc8 {[%clk 0:00:20]} 29. h6 {[%clk 0:00:22]}  Bf5 {[%clk 0:00:20]} 30. Qxg8 {[%clk 0:00:15]}  Qxg8 {[%clk 0:00:20]} 31. f3 {[%clk 0:00:10]}  Be6 {[%clk 0:00:19]} 32. Kf2 {[%clk 0:00:06]}  Qh7 {[%clk 0:00:18]} 33. Re4 {[%clk 0:00:04]}  d2 {[%clk 0:00:15]} 34. Rd4 {[%clk 0:00:04]}  c3 {[%clk 0:00:16]} 35. Ke2 {[%clk 0:00:02]}  Kb7 {[%clk 0:00:14]} 36. Rd8 {[%clk 0:00:01]}  Qc2 {[%clk 0:00:15]} 37. g8=Q {[%clk 0:00:02]}  d1=Q+ {[%clk 0:00:15]} 38. Ke3 {[%clk 0:00:02]}  Qe1+ {[%clk 0:00:14]} 39. Kf4 {[%clk 0:00:02]}  Qcc1+ {[%clk 0:00:14]} 0-1


[Site "https://www.chess.com"]

[Event "Titled Tuesday Blitz March 28 Early 2023"]
[White "Kilic, Eray"]
[Black "Jia, Haoxiang"]
[WhiteFideId "44517173"]
[BlackFideId "8602999"]
[WhiteElo "2328"]
[BlackElo "2602"]
[Result "1-0"]
[Round "07"]
[TimeControl "180+2"]
[Date "2023.03.28"]
[WhiteClock "0:02:02"]
[BlackClock "0:00:59"]

1. d4 {[%clk 0:03:00]}  Nf6 {[%clk 0:02:50]} 2. Nc3 {[%clk 0:03:01]}  d5 {[%clk 0:02:50]} 3. Bf4 {[%clk 0:03:01]}  c6 {[%clk 0:02:50]} 4. e3 {[%clk 0:03:01]}  Bf5 {[%clk 0:02:47]} 5. Bd3 {[%clk 0:03:01]}  Bxd3 {[%clk 0:02:46]} 6. cxd3 {[%clk 0:03:02]}  Nbd7 {[%clk 0:02:47]} 7. g4 {[%clk 0:03:01]}  h6 {[%clk 0:02:43]} 8. f3 {[%clk 0:02:50]}  e6 {[%clk 0:02:27]} 9. Nge2 {[%clk 0:02:49]}  Be7 {[%clk 0:02:13]} 10. Qd2 {[%clk 0:02:44]}  Rc8 {[%clk 0:02:13]} 11. O-O-O {[%clk 0:02:44]}  c5 {[%clk 0:02:09]} 12. dxc5 {[%clk 0:02:44]}  Nxc5 {[%clk 0:02:08]} 13. d4 {[%clk 0:02:45]}  Ncd7 {[%clk 0:02:04]} 14. Kb1 {[%clk 0:02:43]}  a6 {[%clk 0:02:02]} 15. h4 {[%clk 0:02:42]}  Nh7 {[%clk 0:01:45]} 16. e4 {[%clk 0:02:34]}  dxe4 {[%clk 0:01:41]} 17. fxe4 {[%clk 0:02:35]}  Bxh4 {[%clk 0:01:39]} 18. e5 {[%clk 0:02:27]}  Bg5 {[%clk 0:01:35]} 19. Ne4 {[%clk 0:02:26]}  Be7 {[%clk 0:01:31]} 20. g5 {[%clk 0:02:17]}  Nhf8 {[%clk 0:01:27]} 21. gxh6 {[%clk 0:02:17]}  gxh6 {[%clk 0:01:27]} 22. Bxh6 {[%clk 0:02:17]}  Ng6 {[%clk 0:01:26]} 23. Bg7 {[%clk 0:02:16]}  Rg8 {[%clk 0:01:20]} 24. Rh7 {[%clk 0:02:16]}  Qb6 {[%clk 0:01:14]} 25. N2c3 {[%clk 0:02:14]}  Qc6 {[%clk 0:01:11]} 26. d5 {[%clk 0:02:11]}  exd5 {[%clk 0:01:09]} 27. Nxd5 {[%clk 0:02:12]}  Ndxe5 {[%clk 0:01:07]} 28. Nef6+ {[%clk 0:02:12]}  Bxf6 {[%clk 0:01:05]} 29. Nxf6+ {[%clk 0:02:12]}  Ke7 {[%clk 0:01:05]} 30. Nxg8+ {[%clk 0:02:02]}  Rxg8 {[%clk 0:01:03]} 31. Qg5+ {[%clk 0:02:02]}  Ke6 {[%clk 0:00:59]} 32. Qf6# {[%clk 0:02:02]} 1-0


[Site "https://www.chess.com"]